bitfinex-derivatives/quotes_BNBF0:USTF0_20250510
["timestamp","ask_amount","ask_price","bid_price","bid_amount"]
[1746910826464,0.28057578,656.43,654.66,1.06950209]
[1746910827065,0.28057578,656.42,654.66,1.06950209]
[1746910827465,0.28057578,656.41,654.66,1.06950209]
[1746910827768,0.28057578,656.4,654.66,1.06950209]
[1746910828165,0.28057578,656.39,654.66,1.06950209]
[1746910828568,2.24662121,656.39,654.66,1.06950209]
[1746910828866,0.28057578,656.38,654.66,1.06950209]
[1746910829168,0.28057578,656.37,654.66,1.06950209]
[1746910829468,0.28057578,656.36,654.66,1.06950209]
[1746910829868,0.28057578,656.35,654.66,1.06950209]
[1746910830369,0.28057578,656.34,654.66,1.06950209]
[1746910830665,0.28057578,656.33,654.66,1.06950209]
[1746910831169,0.28057578,656.32,654.66,1.06950209]
[1746910831465,0.28057578,656.31,654.66,1.06950209]
[1746910831968,0.28057578,656.3,654.66,1.06950209]
[1746910832365,0.28057578,656.29,654.66,1.06950209]
[1746910832669,0.28057578,656.28,654.66,1.06950209]
[1746910833069,0.28057578,656.27,654.66,1.06950209]
[1746910833470,0.28057578,656.26,654.66,1.06950209]
[1746910833770,0.28057578,656.25,654.66,1.06950209]
[1746910834266,0.28057578,656.24,654.66,1.06950209]
[1746910834566,0.28057578,656.23,654.66,1.06950209]
[1746910835067,0.28057578,656.22,654.66,1.06950209]
[1746910835566,0.28057578,656.21,654.66,1.06950209]
[1746910835865,0.28057578,656.2,654.66,1.06950209]
[1746910836268,0.28057578,656.19,654.66,1.06950209]
[1746910836775,0.28057578,656.18,654.66,1.06950209]
[1746910837074,0.28057578,656.17,654.66,1.06950209]
[1746910837472,0.28057578,656.16,654.66,1.06950209]
[1746910837973,0.28057578,656.15,654.66,1.06950209]
[1746910838367,1.96604543,656.45,654.66,1.06950209]
[1746910838368,0.28057578,656.14,654.66,1.06950209]
[1746910838972,0.28057578,656.13,654.66,1.06950209]
[1746910839472,0.28057578,656.12,654.66,1.06950209]
[1746910839771,0.28057578,656.11,654.66,1.06950209]
[1746910840173,0.28057578,656.1,654.66,1.06950209]
[1746910840571,0.28057578,656.09,654.66,1.06950209]
[1746910840772,0.28057578,656.09,654.66,0.30550209]
[1746910841072,0.28057578,656.08,654.66,0.30550209]
[1746910841474,0.28057578,656.07,654.66,0.30550209]
[1746910841773,0.28057578,656.06,654.66,0.30550209]
[1746910842175,0.28057578,656.05,654.66,0.30550209]
[1746910842473,0.28057578,656.04,654.66,0.30550209]
[1746910842774,0.28057578,656.03,654.66,0.30550209]
[1746910843073,0.28057578,656.02,654.66,0.30550209]
[1746910843474,0.28057578,656.01,654.66,0.30550209]
[1746910843774,0.57161325,656.34,654.66,0.30550209]
[1746910843775,1.96604543,656.44,654.66,0.30550209]
[1746910844076,0.85243346,656.43,654.66,0.30550209]
[1746910844470,0.28065718,656.42,654.66,0.30550209]
[1746910844875,0.28065718,656.41,654.66,0.30550209]
[1746910845270,0.28065718,656.4,654.66,0.30550209]
[1746910845574,0.28065718,656.39,654.66,0.30550209]
[1746910846074,0.28065718,656.38,654.66,0.30550209]
[1746910846374,0.28065718,656.37,654.66,0.30550209]
[1746910846770,0.28065718,656.36,654.66,0.30550209]
[1746910847075,0.28065718,656.35,654.66,0.30550209]
[1746910847573,0.28065718,656.34,654.66,0.30550209]
[1746910847874,0.28065718,656.33,654.66,0.30550209]
[1746910848375,0.28065718,656.32,654.66,0.30550209]
[1746910848671,0.28065718,656.31,654.66,0.30550209]
[1746910849076,0.28065718,656.3,654.66,0.30550209]
[1746910849376,0.28065718,656.29,654.66,0.30550209]
[1746910849676,0.28065718,656.28,654.66,0.30550209]
[1746910849976,0.28065718,656.27,654.66,0.30550209]
[1746910850275,0.57177628,656.45,654.66,0.30550209]
[1746910850276,1.96604543,656.46,654.66,0.30550209]
[1746910850477,0.85257727,656.45,654.66,0.30550209]
[1746910850972,0.28070507,656.44,654.66,0.30550209]
[1746910851278,0.28070507,656.43,654.66,0.30550209]
[1746910852077,0.28070507,656.42,654.66,0.30550209]
[1746910852377,0.28070507,656.41,654.66,0.30550209]
[1746910852578,0.28070507,656.4,654.66,0.30550209]
[1746910852878,0.28070507,656.39,654.66,0.30550209]
[1746910853178,1.96604543,656.42,654.66,0.30550209]
[1746910853873,0.28071084,656.41,654.66,0.30550209]
[1746910854073,0.8525946,656.41,654.66,0.30550209]
[1746910854578,0.28071084,656.4,654.66,0.30550209]
[1746910854878,0.28071084,656.39,654.66,0.30550209]
[1746910855177,0.28071084,656.38,654.66,0.30550209]
[1746910855573,0.28071084,656.37,654.66,0.30550209]
[1746910856077,0.28071084,656.36,654.66,0.30550209]
[1746910856277,0.28071084,656.35,654.66,0.30550209]
[1746910856675,0.28071084,656.34,654.66,0.30550209]
[1746910857274,0.28071084,656.33,654.66,0.30550209]
[1746910857779,0.28071084,656.32,654.66,0.30550209]
[1746910858080,1.96604543,656.64,654.66,0.30550209]
[1746910858474,0.85261024,656.63,654.66,0.30550209]
[1746910858781,0.28071605,656.62,654.66,0.30550209]
[1746910859181,0.28071605,656.61,654.66,0.30550209]
[1746910859680,0.28071605,656.6,654.66,0.30550209]
[1746910860179,0.85261024,656.6,654.66,0.30550209]
[1746910860782,0.85261024,656.59,654.66,0.30550209]
[1746910861079,0.85261024,656.58,654.66,0.30550209]
[1746910861378,0.85261024,656.57,654.66,0.30550209]
[1746910861583,0.85261024,656.57,654.66,1.02150209]
[1746910861784,1.96604543,656.46,654.66,1.02150209]
[1746910861983,0.85261024,656.45,654.66,1.02150209]
[1746910862379,0.85261024,656.44,654.66,1.02150209]
[1746910862984,0.85261024,656.43,654.66,1.02150209]
[1746910863380,0.28071605,656.42,654.66,1.02150209]
[1746910863784,0.28071605,656.41,654.66,1.02150209]
[1746910864184,1.96604543,656.36,654.66,1.02150209]
[1746910864684,0.85261024,656.35,654.66,1.02150209]
[1746910864985,0.85261024,656.34,654.66,1.02150209]
[1746910865386,0.85261024,656.33,654.66,1.02150209]
[1746910865885,0.85261024,656.32,654.66,1.02150209]
[1746910866185,0.85261024,656.31,654.66,1.02150209]
[1746910866580,1.96604543,656.21,654.66,1.02150209]
[1746910866984,0.85261024,656.2,654.66,1.02150209]
[1746910867284,0.28071605,656.19,654.66,1.02150209]
[1746910867680,0.28071605,656.18,654.66,1.02150209]
[1746910868384,0.28071605,656.17,654.66,1.02150209]
[1746910868685,1.96604543,656.13,654.66,1.02150209]
[1746910869887,0.85261024,656.12,654.66,1.02150209]
[1746910871088,0.85261024,656.88,654.66,1.02150209]
[1746910871487,0.28071605,656.87,654.66,1.02150209]
[1746910871888,0.28071605,656.86,654.66,1.02150209]
[1746910872089,2.24676148,656.86,654.66,1.02150209]
[1746910872291,0.85261024,656.85,654.66,1.02150209]
[1746910872690,0.28071605,656.84,654.66,1.02150209]
[1746910873091,0.28071605,656.83,654.66,1.02150209]
[1746910873591,1.96604543,656.86,654.66,1.02150209]
[1746910873788,0.28058798,656.82,654.66,1.02150209]
[1746910873993,1.96604543,656.8,654.66,1.02150209]
[1746910874592,0.85222568,656.79,654.66,1.02150209]
[1746910874891,0.28058798,656.78,654.66,1.02150209]
[1746910875191,0.28058798,656.77,654.66,1.02150209]
[1746910875592,0.28058798,656.76,654.66,1.02150209]
[1746910875892,0.28058798,656.75,654.66,1.02150209]
[1746910876194,1.96604543,656.8,654.66,1.02150209]
[1746910876493,0.8521357,656.79,654.66,1.02150209]
[1746910876792,0.28055802,656.78,654.66,1.02150209]
[1746910877294,0.28055802,656.77,654.66,1.02150209]
[1746910877594,1.96604543,656.56,654.66,1.02150209]
[1746910877897,0.8521357,656.55,654.66,1.02150209]
[1746910878189,0.28055802,656.54,654.66,1.02150209]
[1746910878595,0.28055802,656.53,654.66,1.02150209]
[1746910879092,0.28055802,656.52,654.66,1.02150209]
[1746910879594,0.28055802,656.51,654.66,1.02150209]
[1746910879891,0.57157768,656.55,654.66,1.02150209]
[1746910879892,0.28055802,656.5,654.66,1.02150209]
[1746910880292,0.28055802,656.49,654.66,1.02150209]
[1746910880896,0.28055802,656.48,654.66,1.02150209]
[1746910881197,0.28055802,656.47,654.66,1.02150209]
[1746910881698,0.28055802,656.46,654.66,1.02150209]
[1746910882197,0.28055802,656.45,654.66,1.02150209]
[1746910882997,0.28055802,656.44,654.66,1.02150209]
[1746910883498,0.28055802,656.43,654.66,1.02150209]
[1746910883997,0.28055802,656.42,654.66,1.02150209]
[1746910884293,0.28055802,656.41,654.66,1.02150209]
[1746910884897,0.28055802,656.4,654.66,1.02150209]
[1746910885600,0.28055802,656.39,654.66,1.02150209]
[1746910885897,0.28055802,656.38,654.66,1.02150209]
[1746910886198,0.28055802,656.37,654.66,1.02150209]
[1746910886598,0.28055802,656.36,654.66,1.02150209]
[1746910886893,0.28055802,656.35,654.66,1.02150209]
[1746910887299,0.28055802,656.34,654.66,1.02150209]
[1746910887501,0.28055802,656.33,654.66,1.02150209]
[1746910888193,0.28055802,656.32,654.66,1.02150209]
[1746910888799,0.28055802,656.31,654.66,1.02150209]
[1746910889098,0.28055802,656.3,654.66,1.02150209]
[1746910889500,0.28055802,656.29,654.66,1.02150209]
[1746910889798,0.57157768,656.74,654.66,1.02150209]
[1746910889799,0.28055802,656.28,654.66,1.02150209]
[1746910890198,0.28055802,656.27,654.66,1.02150209]
[1746910890500,0.28055802,656.26,654.66,1.02150209]
[1746910890799,0.28055802,656.25,654.66,1.02150209]
[1746910891095,0.28055802,656.24,654.66,1.02150209]
[1746910891499,0.28055802,656.23,654.66,1.02150209]
[1746910891799,0.28055802,656.22,654.66,1.02150209]
[1746910892202,0.28055802,656.21,654.66,1.02150209]
[1746910893000,0.28055802,656.2,654.66,1.02150209]
[1746910893194,0.28055802,656.19,654.66,1.02150209]
[1746910893495,0.28055802,656.18,654.66,1.02150209]
[1746910893900,0.28055802,656.17,654.66,1.02150209]
[1746910894301,0.28055802,656.16,654.66,1.02150209]
[1746910894695,0.28055802,656.15,654.66,1.02150209]
[1746910894899,0.28055802,656.14,654.66,1.02150209]
[1746910895301,0.28055802,656.13,654.66,1.02150209]
[1746910895595,0.28055802,656.12,654.66,1.02150209]
[1746910896001,0.28055802,656.11,654.66,1.02150209]
[1746910896401,0.28055802,656.1,654.66,1.02150209]
[1746910896701,0.28055802,656.09,654.66,1.02150209]
[1746910897003,0.28055802,656.08,654.66,1.02150209]
[1746910897399,0.28055802,656.07,654.66,1.02150209]
[1746910897601,0.28055802,656.06,654.66,1.02150209]
[1746910897902,1.96604543,656.72,654.66,1.02150209]
[1746910898203,0.85245675,656.71,654.66,1.02150209]
[1746910898606,0.28066493,656.7,654.66,1.02150209]
[1746910898903,0.85245675,656.69,654.66,1.02150209]
[1746910899204,0.85245675,656.68,654.66,1.02150209]
[1746910899399,1.96604543,656.59,654.66,1.02150209]
[1746910899806,0.85245675,656.58,654.66,1.02150209]
[1746910900107,0.85245675,656.57,654.66,1.02150209]
[1746910900507,0.85245675,656.56,654.66,1.02150209]
[1746910900802,0.85245675,656.55,654.66,1.02150209]
[1746910901208,0.85245675,656.54,654.66,1.02150209]
[1746910901602,0.85245675,656.53,654.66,1.02150209]
[1746910901806,1.96604543,656.06,654.66,1.02150209]
[1746910902407,0.85245675,656.05,654.66,1.02150209]
[1746910902904,0.28066493,656.04,654.66,1.02150209]
[1746910903208,0.28066493,656.03,654.66,1.02150209]
[1746910903615,0.28066493,656.02,654.66,1.02150209]
[1746910903909,0.28066493,656.01,654.66,1.02150209]
[1746910904310,0.28066493,656.0,654.66,1.02150209]
[1746910905510,0.28066493,655.99,654.66,1.02150209]
[1746910905810,0.28066493,655.98,654.66,1.02150209]
[1746910906310,0.28066493,655.97,654.66,1.02150209]
[1746910906610,0.28066493,655.96,654.66,1.02150209]
[1746910906905,0.28066493,655.95,654.66,1.02150209]
[1746910907405,0.28066493,655.94,654.66,1.02150209]
[1746910907705,0.28066493,655.93,654.66,1.02150209]
[1746910908506,0.28066493,655.92,654.66,1.02150209]
[1746910908908,0.28066493,655.91,654.66,1.02150209]
[1746910909213,0.28066493,655.9,654.66,1.02150209]
[1746910909610,0.28066493,655.89,654.66,1.02150209]
[1746910909910,0.28066493,655.88,654.66,1.02150209]
[1746910910211,0.28066493,655.87,654.66,1.02150209]
[1746910910611,0.28066493,655.86,654.66,1.02150209]
[1746910911112,0.28066493,655.85,654.66,1.02150209]
[1746910911415,0.28066493,655.84,654.66,1.02150209]
[1746910911712,0.28066493,655.83,654.66,1.02150209]
[1746910912008,0.28066493,655.82,654.66,1.02150209]
[1746910912413,0.28066493,655.81,654.66,1.02150209]
[1746910912714,0.28066493,655.8,654.66,1.02150209]
[1746910913414,0.28066493,655.79,654.66,1.02150209]
[1746910913816,0.28066493,655.78,654.66,1.02150209]
[1746910914113,0.28066493,655.77,654.66,1.02150209]
[1746910914510,0.28066493,655.76,654.66,1.02150209]
[1746910914714,0.28066493,656.35,654.66,1.02150209]
[1746910915315,0.28066493,656.34,654.66,1.02150209]
[1746910915716,0.28066493,656.33,654.66,1.02150209]
[1746910916012,0.28066493,656.32,654.66,1.02150209]
[1746910916315,0.28066493,656.31,654.66,1.02150209]
[1746910916716,0.28066493,656.3,654.66,1.02150209]
[1746910917116,0.28066493,656.29,654.66,1.02150209]
[1746910917714,0.28066493,656.28,654.66,1.02150209]
[1746910918018,0.28066493,656.27,654.66,1.02150209]
[1746910918514,0.28066493,656.26,654.66,1.02150209]
[1746910919017,0.28066493,656.25,654.66,1.02150209]
[1746910919316,0.28066493,656.24,654.66,1.02150209]
[1746910920514,0.28066493,656.23,654.66,1.02150209]
[1746910920817,0.28066493,656.22,654.66,1.02150209]
[1746910921215,0.28066493,656.21,654.66,1.02150209]
[1746910921518,0.28066493,656.2,654.66,1.02150209]
[1746910921918,0.28066493,656.19,654.66,1.02150209]
[1746910922420,0.28066493,656.18,654.66,1.02150209]
[1746910922819,0.28066493,656.17,654.66,1.02150209]
[1746910923120,0.28066493,656.16,654.66,1.02150209]
[1746910923516,0.28066493,656.15,654.66,1.02150209]
[1746910923714,0.28066493,656.14,654.66,1.02150209]
[1746910924218,0.28066493,656.13,654.66,1.02150209]
[1746910924521,0.28066493,656.12,654.66,1.02150209]
[1746910924919,0.28066493,656.11,654.66,1.02150209]
[1746910925219,0.28066493,656.1,654.66,1.02150209]
[1746910925421,1.96604543,655.95,654.66,1.02150209]
[1746910925919,0.85245675,655.94,654.66,1.02150209]
[1746910926315,0.28066493,655.93,654.66,1.02150209]
[1746910927221,0.28066493,655.92,654.66,1.02150209]
[1746910927420,0.54636145,655.92,654.66,1.02150209]
[1746910927716,0.28066493,655.91,654.66,1.02150209]
[1746910928420,0.28066493,655.9,654.66,1.02150209]
[1746910928720,0.28066493,655.89,654.66,1.02150209]
[1746910929020,0.28066493,655.88,654.66,1.02150209]
[1746910929218,0.54636348,655.88,654.66,1.02150209]
[1746910929419,0.28066493,655.87,654.66,1.02150209]
[1746910930024,0.28066493,655.86,654.66,1.02150209]
[1746910930526,0.28066493,655.85,654.66,1.02150209]
[1746910930820,0.28066493,655.84,654.66,1.02150209]
[1746910931326,0.28066493,655.83,654.66,1.02150209]
[1746910931727,0.28066493,655.82,654.66,1.02150209]
[1746910932026,0.28066493,655.81,654.66,1.02150209]
[1746910932425,0.28066493,655.8,654.66,1.02150209]
[1746910932722,0.28066493,655.79,654.66,1.02150209]
[1746910933123,0.28066493,655.78,654.66,1.02150209]
[1746910933327,0.54636043,655.78,654.66,1.02150209]
[1746910933528,0.28066493,655.77,654.66,1.02150209]
[1746910933923,0.28066493,655.76,654.66,1.02150209]
[1746910934327,0.28066493,655.75,654.66,1.02150209]
[1746910934923,0.28066493,655.74,654.66,1.02150209]
[1746910935424,0.28066493,655.73,654.66,1.02150209]
[1746910935727,0.28066493,655.72,654.66,1.02150209]
[1746910936123,0.28066493,655.71,654.66,1.02150209]
[1746910936326,0.54636551,655.71,654.66,1.02150209]
[1746910936628,0.28066493,655.7,654.66,1.02150209]
[1746910936828,0.28066493,655.69,654.66,1.02150209]
[1746910937226,0.28066493,655.68,654.66,1.02150209]
[1746910937730,0.28066493,655.7,654.66,1.02150209]
[1746910938428,0.28066493,655.69,654.66,1.02150209]
[1746910938728,0.28066493,655.68,654.66,1.02150209]
[1746910939030,1.96604543,656.03,654.66,1.02150209]
[1746910939230,0.26569652,655.67,654.66,1.02150209]
[1746910939530,1.96604543,655.99,654.66,1.02150209]
[1746910939730,0.8526582,655.98,654.66,1.02150209]
[1746910940125,0.28073202,655.97,654.66,1.02150209]
[1746910940533,0.28073202,655.96,654.66,1.02150209]
[1746910940832,0.28073202,655.95,654.66,1.02150209]
[1746910941428,0.28073202,655.94,654.66,1.02150209]
[1746910941827,0.28073202,655.93,654.66,1.02150209]
[1746910942229,0.28073202,655.92,654.66,1.02150209]
[1746910942728,0.28073202,655.91,654.66,1.02150209]
[1746910943230,0.28073202,655.9,654.66,1.02150209]
[1746910943426,0.26570869,655.96,654.66,1.02150209]
[1746910943834,0.28075573,655.95,654.66,1.02150209]
[1746910944233,0.28075573,655.94,654.66,1.02150209]
[1746910944733,0.28075573,655.93,654.66,1.02150209]
[1746910945035,0.28075573,655.92,654.66,1.02150209]
[1746910945636,0.28075573,655.91,654.66,1.02150209]
[1746910945835,0.28075573,655.9,654.66,1.02150209]
[1746910946233,0.28075573,655.89,654.66,1.02150209]
[1746910946536,0.28075573,655.88,654.66,1.02150209]
[1746910947137,0.28075573,655.87,654.66,1.02150209]
[1746910947337,0.54647862,655.87,654.66,1.02150209]
[1746910947537,0.28075573,655.86,654.66,1.02150209]
[1746910947837,0.28075573,655.85,654.66,1.02150209]
[1746910948139,0.28075573,655.84,654.66,1.02150209]
[1746910948534,0.28075573,655.83,654.66,1.02150209]
[1746910948840,0.28075573,655.82,654.66,1.02150209]
[1746910949139,0.28075573,655.81,654.66,1.02150209]
[1746910949534,0.26572289,655.87,654.66,1.02150209]
[1746910950041,0.28075793,655.86,654.66,1.02150209]
[1746910950239,0.54647372,655.86,654.66,1.02150209]
[1746910950541,0.28075793,655.85,654.66,1.02150209]
[1746910950842,0.28075793,655.84,654.66,1.02150209]
[1746910951140,0.28075793,655.83,654.66,1.02150209]
[1746910951442,0.28075793,655.82,654.66,1.02150209]
[1746910951936,0.28075793,655.81,654.66,1.02150209]
[1746910952338,0.28075793,655.8,654.66,1.02150209]
[1746910952743,0.28075793,655.79,654.66,1.02150209]
[1746910953240,0.26575333,655.78,654.66,1.02150209]
[1746910953444,0.54657639,655.78,654.66,1.02150209]
[1746910953847,0.28082306,655.77,654.66,1.02150209]
[1746910954247,0.28082306,655.76,654.66,1.02150209]
[1746910954790,0.28082306,655.75,654.66,1.02150209]
[1746910955742,0.28082306,655.74,654.66,1.02150209]
[1746910956143,0.28082306,655.73,654.66,1.02150209]
[1746910956342,0.5465703,655.73,654.66,1.02150209]
[1746910956643,0.28082306,655.72,654.66,1.02150209]
[1746910956947,0.28082306,655.71,654.66,1.02150209]
[1746910957346,0.28082306,655.7,654.66,1.02150209]
[1746910957747,0.28082306,655.69,654.66,1.02150209]
[1746910958046,0.28082306,655.68,654.66,1.02150209]
[1746910958546,0.28082306,655.67,654.66,1.02150209]
[1746910958740,0.26574724,655.73,654.66,1.02150209]
[1746910958741,0.28082306,655.66,654.66,1.02150209]
[1746910959145,0.28082306,655.65,654.66,1.02150209]
[1746910959341,0.54659161,655.65,654.66,1.02150209]
[1746910959543,0.28082306,655.64,654.66,1.02150209]
[1746910959743,0.28082306,655.63,654.66,0.30550209]
[1746910960148,0.28082306,655.62,654.66,0.30550209]
[1746910960648,0.26576855,655.65,654.66,0.30550209]
[1746910960649,0.28082306,655.61,654.66,0.30550209]
[1746910960949,0.28082306,655.6,654.66,0.30550209]
[1746910961249,0.28082306,655.59,654.66,0.30550209]
[1746910961649,0.28082306,655.58,654.66,0.30550209]
[1746910962250,0.28082306,655.57,654.66,0.30550209]
[1746910962545,0.54677644,655.57,654.66,0.30550209]
[1746910962750,0.28082306,655.56,654.66,0.30550209]
[1746910963151,0.28082306,655.55,654.66,0.30550209]
[1746910963648,0.28082306,655.54,654.66,0.30550209]
[1746910963950,0.28082306,655.53,654.66,0.30550209]
[1746910964348,0.28082306,655.52,654.66,0.30550209]
[1746910964745,0.28082306,655.51,654.66,0.30550209]
[1746910965250,0.2658193,655.5,654.66,0.30550209]
[1746910965548,0.54664236,655.5,654.66,0.30550209]
[1746910965950,0.28082306,655.49,654.66,0.30550209]
[1746910966151,0.28082306,655.48,654.66,0.30550209]
[1746910966552,0.28082306,655.47,654.66,0.30550209]
[1746910966947,0.28082306,655.46,654.66,0.30550209]
[1746910967352,0.28082306,655.45,654.66,0.30550209]
[1746910967654,0.28082306,655.44,654.66,0.30550209]
[1746910968153,0.28082306,655.43,654.66,0.30550209]
[1746910968353,0.54662917,655.43,654.66,0.30550209]
[1746910968652,0.28082306,655.42,654.66,0.30550209]
[1746910969054,0.28082306,655.41,654.66,0.30550209]
[1746910969455,0.28082306,655.4,654.66,0.30550209]
[1746910969848,0.28082306,655.39,654.66,0.30550209]
[1746910970053,0.28082306,655.38,654.66,0.30550209]
[1746910970449,0.28082306,655.37,654.66,0.30550209]
[1746910970953,0.28082306,655.36,654.66,0.30550209]
[1746910971254,0.28082306,655.35,654.66,0.30550209]
[1746910971854,0.28082306,655.34,654.66,0.30550209]
[1746910972155,0.26580611,655.43,654.66,0.30550209]
[1746910972555,0.28091992,655.42,654.66,0.30550209]
[1746910973054,0.28091992,655.41,654.66,0.30550209]
[1746910973558,0.28091992,655.4,654.66,0.30550209]
[1746910973853,0.28091992,655.39,654.66,0.30550209]
[1746910974358,0.26584773,655.38,654.66,0.30550209]
[1746910974559,0.54676765,655.38,654.66,0.30550209]
[1746910974959,0.28091992,655.37,654.66,0.30550209]
[1746910975259,0.28091992,655.36,654.66,0.30550209]
[1746910975560,0.28091992,655.35,654.66,0.30550209]
[1746910975959,0.28091992,655.34,654.66,0.30550209]
[1746910976359,0.28091992,655.33,654.66,0.30550209]
[1746910976560,0.28091992,655.32,654.66,0.30550209]
[1746910976961,0.28091992,655.31,654.66,0.30550209]
[1746910977256,0.54678695,655.31,654.66,0.30550209]
[1746910977460,0.28091992,655.3,654.66,0.30550209]
[1746910977754,0.28091992,655.29,654.66,0.30550209]
[1746910978060,0.28091992,655.28,654.66,0.30550209]
[1746910978561,0.28091992,655.27,654.66,0.30550209]
[1746910979256,0.28091992,655.26,654.66,0.30550209]
[1746910979661,0.28091992,655.25,654.66,0.30550209]
[1746910980061,0.28091992,655.24,654.66,0.30550209]
[1746910980365,0.28091992,655.23,654.66,0.30550209]
[1746910980658,0.28091992,655.3,654.66,0.30550209]
[1746910981064,0.28091992,655.29,654.66,0.30550209]
[1746910981557,0.28091992,655.3,654.66,0.30550209]
[1746910983363,0.26591985,655.29,654.66,0.30550209]
[1746910983663,0.28091992,655.28,654.66,0.30550209]
[1746910984163,0.28091992,655.27,654.66,0.30550209]
[1746910984562,0.28091992,655.26,654.66,0.30550209]
[1746910985062,0.28091992,655.25,654.66,0.30550209]
[1746910985357,0.28091992,655.24,654.66,0.30550209]
[1746910985765,0.26591985,655.29,654.66,0.30550209]
[1746910986067,0.28105329,655.28,654.66,0.30550209]
[1746910986365,0.28105329,655.27,654.66,0.30550209]
[1746910986761,0.26591985,655.29,654.66,0.30550209]
[1746910986762,0.28105329,655.26,654.66,0.30550209]
[1746910987062,1.96604543,655.25,654.66,0.30550209]
[1746910987266,2.24709872,655.25,654.66,0.30550209]
[1746910987565,0.85351269,655.24,654.66,0.30550209]
[1746910987866,0.28105329,655.23,654.66,0.30550209]
[1746910988368,0.28105329,655.22,654.66,0.30550209]
[1746910988561,0.28105329,655.21,654.66,0.30550209]
[1746910988967,0.28105329,655.2,654.66,0.30550209]
[1746910989263,0.54714699,655.2,654.66,0.30550209]
[1746910989467,0.28105329,655.19,654.66,0.30550209]
[1746910989967,0.28105329,655.18,654.66,0.30550209]
[1746910990360,0.28105329,655.17,654.66,0.30550209]
[1746910990666,0.28105329,655.16,654.66,0.30550209]
[1746910991068,0.28105329,655.15,654.66,0.30550209]
[1746910991468,0.28105329,655.14,654.66,0.30550209]
[1746910991768,0.28105329,655.13,654.66,0.30550209]
[1746910992067,0.28105329,655.12,654.66,0.30550209]
[1746910992268,0.54715106,655.12,654.66,0.30550209]
[1746910992463,0.28105329,655.11,654.66,0.30550209]
[1746910992769,0.28105329,655.1,654.66,0.30550209]
[1746910993371,0.28105329,655.09,654.66,0.30550209]
[1746910993869,0.28105329,655.11,654.66,0.30550209]
[1746910995168,0.28105329,655.75,654.66,0.30550209]
[1746910995468,0.26600929,655.1,654.66,0.30550209]
[1746910995669,0.28105329,655.74,654.66,0.30550209]
[1746910995869,0.28105329,655.73,654.66,0.30550209]
[1746910996370,0.54699753,655.72,654.66,0.30550209]
[1746910996869,0.28105329,655.71,654.66,0.30550209]
[1746910997370,0.28105329,655.7,654.66,0.30550209]
[1746910997870,0.28105329,655.69,654.66,0.30550209]
[1746910998466,0.54698127,655.68,654.66,0.30550209]
[1746910998671,0.28105329,655.67,654.66,0.30550209]
[1746910999071,0.28105329,655.66,654.66,0.30550209]
[1746910999372,0.28105329,655.65,654.66,0.30550209]
[1746910999773,0.28105329,655.64,654.66,0.30550209]
[1746911000168,0.28105329,655.63,654.66,0.30550209]
[1746911000573,0.28105329,655.62,654.66,0.30550209]
[1746911000872,0.28105329,655.61,654.66,0.30550209]
[1746911001275,0.28105329,655.6,654.66,0.30550209]
[1746911001574,0.28105329,655.59,654.66,0.30550209]
[1746911002176,0.28105329,655.58,654.66,0.30550209]
[1746911002674,0.28105329,655.57,654.66,0.30550209]
[1746911002974,0.28105329,655.56,654.66,0.30550209]
[1746911003469,0.28105329,655.55,654.66,0.30550209]
[1746911003675,0.28105329,655.54,654.66,0.30550209]
[1746911004174,0.28105329,655.53,654.66,0.30550209]
[1746911004374,0.28105329,655.52,654.66,0.30550209]
[1746911004674,0.28105329,655.51,654.66,0.30550209]
[1746911005069,0.28105329,655.5,654.66,0.30550209]
[1746911005576,0.28105329,655.49,654.66,0.30550209]
[1746911006476,0.28105329,655.48,654.66,0.30550209]
[1746911006777,0.28105329,655.47,654.66,0.30550209]
[1746911007079,0.28105329,655.46,654.66,0.30550209]
[1746911007478,0.28105329,655.45,654.66,0.30550209]
[1746911007778,0.28105329,655.44,654.66,0.30550209]
[1746911008278,0.28105329,655.43,654.66,0.30550209]
[1746911008682,0.28105329,655.42,654.66,0.30550209]
[1746911009084,0.28105329,655.41,654.66,0.30550209]
[1746911009582,0.2659981,655.46,654.66,0.30550209]
[1746911009583,0.28105329,655.4,654.66,0.30550209]
[1746911009782,0.28105329,655.39,654.66,0.30550209]
[1746911010082,0.28105329,655.38,654.66,0.30550209]
[1746911010383,0.54695892,655.38,654.66,0.30550209]
[1746911010583,0.28105329,655.37,654.66,0.30550209]
[1746911010779,0.28105329,655.36,654.66,0.30550209]
[1746911011080,0.28105329,655.35,654.66,0.30550209]
[1746911011484,0.28105329,655.34,654.66,0.30550209]
[1746911011980,0.28105329,655.33,654.66,0.30550209]
[1746911012385,0.28105329,655.32,654.66,0.30550209]
[1746911012880,0.28105329,655.31,654.66,0.30550209]
[1746911013283,0.28105329,655.3,654.66,0.05599751]
[1746911013586,0.28105329,655.3,654.67,0.30549742]
[1746911013785,0.28105329,655.29,654.67,0.30549742]
[1746911014086,0.28105329,655.28,654.67,0.30549742]
[1746911014482,0.28105329,655.27,654.67,0.30549742]
[1746911014786,0.28105329,655.26,654.67,0.30549742]
[1746911015185,0.28105329,655.25,654.67,0.30549742]
[1746911015381,0.28105329,655.24,654.67,0.30549742]
[1746911015886,0.28105329,655.23,654.67,0.30549742]
[1746911016387,0.54701785,655.22,654.67,0.30549742]
[1746911016587,1.96604543,655.1,654.67,0.30549742]